Cogmind - Beta 14 @@@ ROGUE MODE // 2024.10.17 @ 14:25:39 Player: Zane Result: Destroyed by 7B-DYK(R) with Subdweller Laser Performance ------------- Evolutions (0) 0 Regions Visited (2) 400 Robots Destroyed (26) 130 Value Destroyed (657) 657 Prototype IDs (0) 0 Alien Tech Used (0) 0 Bonus (0) 0 TOTAL SCORE: 1187 Bonus ------- None Cogmind --------- Core Integrity 0/250 Matter 180/300 Energy 246/250 System Corruption 0% Temperature Cool (8) Movement Walking (190) Ox1 Location -10/Subcaves Parts ------- > --- POWER (1) -------- Ion Engine > --- PROPULSION (2) --- Aluminum Leg Aluminum Leg > --- UTILITY (2) ------ Large Storage Unit Signal Interpreter > --- WEAPON (2) ------- Subdweller Laser Grenade Launcher > --- INVENTORY (15) --- Ion Engine Subdweller Power Source Subdweller Power Source Subdweller Monowheel Small Storage Unit Medium Storage Unit Subdweller Optics Improved Terrain Scanner Utility Shielding Weapon Shielding Light Armor Plating Scrap Shield Makeshift System Shield Peak State ------------ > --- POWER ------------ Subdweller Power Source > --- PROPULSION ------- Aluminum Leg Aluminum Leg > --- UTILITY ---------- Large Storage Unit Signal Interpreter > --- WEAPON ----------- Grenade Launcher Mining Laser > --- INVENTORY -------- Ion Engine Ion Engine Aluminum Leg Subdweller Monowheel Small Storage Unit Medium Storage Unit Subdweller Optics Improved Terrain Scanner Utility Shielding Weapon Shielding Weapon Shielding Light Armor Plating Makeshift System Shield Grenade Launcher [Rating: 10] Favorites ----------- Power Ion Engine Engine Ion Engine Propulsion Aluminum Leg Treads Light Treads Leg Aluminum Leg Utility Large Storage Unit Device Seismic Detector Storage Large Storage Unit Processor Signal Interpreter Weapon Grenade Launcher Energy Gun Subdweller Laser Ballistic Gun Assault Rifle Launcher Grenade Launcher Special Weapon Mining Laser Build | -11 -10 -10 ------- Run | Yrd Mat Sub Slots Evolved . | . . . Power . | . . . Propulsion . | . . . Utility . | . . . Weapon . | . . . Parts Attached 25 | 9 10 6 Power 6 | 2 2 2 Engine 6 | 2 2 2 Core . | . . . Reactor . | . . . Propulsion 5 | 2 2 1 Treads 2 | 2 . . Leg 3 | . 2 1 Wheel . | . . . Hover . | . . . Flight . | . . . Utility 6 | 3 3 . Device 3 | 2 1 . Storage 2 | 1 1 . Processor 1 | . 1 . Hackware . | . . . Protection . | . . . Artifact . | . . . Weapon 8 | 2 3 3 Energy Gun 1 | . . 1 Energy Cannon . | . . . Ballistic Gun 3 | 2 1 . Ballistic Cannon . | . . . Launcher 3 | . 2 1 Special Weapon 1 | . . 1 Impact Weapon . | . . . Slashing Weapon . | . . . Piercing Weapon . | . . . Special Melee Weapon . | . . . Unidentified Prototypes . | . . . Parts Lost 10 | . 6 4 Power 2 | . 1 1 Propulsion 3 | . 2 1 Utility 1 | . 1 . Weapon 4 | . 2 2 Highest Loss Streak 5 | . 5 3 To Critical Strikes . | . . . Average Slot Usage (%) 89 | . 90 89 Engine 13 | . 14 13 Treads 8 | . 22 . Leg 16 | . 2 23 Device 4 | . 11 . Storage 14 | . 14 14 Processor 8 | . . 14 Energy Gun 3 | . . 5 Ballistic Gun 8 | . 22 . Launcher 9 | . 2 14 Special Weapon 1 | . . 2 Peak Build Rating 10 | 9 8 10 Average Rating 8 | 6 7 8 On Entrance 4 | . 7 7 Naked Turns . | . . . Heaviest Build 32 | 15 28 32 Greatest Support 40 | 40 40 20 Greatest Overweight (x) 8 | 2 8 3 Average Overweight (x) . | . . 1 Largest Inventory Capacity 15 | 8 15 15 Average Capacity 13 | 7 11 15 Most Carried 15 | 6 15 15 Average Carried 12 | 3 10 13 Final Capacity 15 | 8 15 15 Final Carried 14 | 6 12 14 Class Distribution -------------------- 100% | Mutant Dominant Class ---------------- Mutant | -10/Materials Mutant | -10/Subcaves Resources | -11 -10 -10 ----------- Run | Yrd Mat Sub Matter Collected 849 | 289 315 245 Remotely . | . . . Salvage Created 714 | 35 491 188 Parts 40 | 6 25 9 Haulers Intercepted 1 | . 1 . Recyclers Shooed 2 | . 2 . Parts Field Recycled . | . . . Retrieved Matter . | . . . Parts Self-Destructed 6 | . . 6 Prevented . | . . . Kills | -11 -10 -10 ------- Run | Yrd Mat Sub Combat Hostiles Destroyed 21 | . 15 6 Guns 10 | . 10 . AOE 11 | . 5 6 Classes Destroyed 7 | 1 5 1 Tunneler 2 | 2 . . Hauler 1 | . 1 . Recycler 1 | . 1 . Operator 1 | . 1 . Swarmer 6 | . 6 . Grunt 9 | . 9 . Subdweller 6 | . . 6 Best Kill Streak 5 | 1 5 2 Combat Bots Only 4 | . 4 2 Max Kills in Single Turn 2 | 1 2 2 Gunslinging 1 | . 1 . Exploded 2 | . 1 2 Melee . | . . . Uniques/NPCs Destroyed . | . . . Combat | -11 -10 -10 -------- Run | Yrd Mat Sub Hostile Shots Fired 134 | . 115 19 Missed 42 | . 35 7 Damage Taken 1139 | . 859 280 Core 251 | . 173 78 Absorbed by Shields . | . . . Core Remaining (%) 100 | 100 . . Volleys Fired 91 | 3 65 23 Largest 2 | 2 2 1 Hottest 100 | 40 50 100 Shots Fired 144 | 6 115 23 Gun 112 | 6 106 . Cannon . | . . . Launcher 24 | . 9 15 Special 8 | . . 8 Kinetic 112 | 6 106 . Thermal 8 | . . 8 Explosive 24 | . 9 15 Electromagnetic . | . . . Robot Hit Streak 17 | 4 9 17 Robot Miss Streak 8 | 1 8 1 Penetration Max . | . . . Secondary Targets 3 | . 3 . Max Gunslinging Chain 1 | . 1 . Shots Hit Robots 80 | 5 63 12 Core Hits 46 | 2 33 11 Critical Kills . | . . . Critical Parts Destroyed 1 | . 1 . Critical Strikes 1 | . 1 . Destroy 1 | . 1 . Melee Attacks . | . . . Impact . | . . . Slashing . | . . . Piercing . | . . . Sneak Attacks . | . . . Combat Hostiles . | . . . Follow-up Attacks . | . . . Damage Inflicted 1934 | 65 1185 684 Guns 810 | 65 745 . Cannons . | . . . Explosions 1116 | . 432 684 Melee . | . . . Ramming 8 | . 8 . Kinetic 810 | 65 745 . Thermal . | . . . Explosive 1116 | . 432 684 Electromagnetic . | . . . Impact . | . . . Slashing . | . . . Piercing . | . . . Highest Corruption . | . . . Average Corruption . | . . . Corruption Purged . | . . . Corruption Blocked . | . . . Overload Shots . | . . . Overflow Damage . | . . . Projectiles . | . . . Explosions . | . . . Melee . | . . . Knockbacks . | . . . Impact . | . . . Kinetic . | . . . Secondary . | . . . Self-Inflicted Damage 60 | . 8 52 Shots 6 | . 1 5 Rammed 2 | . 2 . Targets Rammed 2 | . 2 . Kicked . | . . . Crushed . | . . . Highest Temperature 23 | . 23 . Average Temperature 6 | . 6 . Received Heat Transfer 390 | . 354 36 Siege Activations . | . . . Robots Corrupted . | . . . Combat Hostiles . | . . . Parts Fried . | . . . Impact Corruptions . | . . . Robots Melted . | . . . Combat Hostiles . | . . . Parts Melted . | . . . Heat Transferred . | . . . Parts Sabotaged . | . . . Parts Stolen . | . . . Parts Stripped . | . . . Power Chain Reactions . | . . . Alert | -11 -10 -10 ------- Run | Yrd Mat Sub Peak Influence 243 | 10 243 . Initial 6 | . 6 . Average 103 | 2 117 . Maximum Alert Level 1 | . 1 . Low Security (%) 76 | 100 73 . Level 1 23 | . 26 . Level 2 . | . . . Level 3 . | . . . Level 4 . | . . . Level 5 . | . . . High Security . | . . . Max Security . | . . . Squads Dispatched 3 | . 3 . Investigation 1 | . 1 . Extermination . | . . . Reinforcement 2 | . 2 . Assault . | . . . Garrison . | . . . Intercept . | . . . Searches Triggered . | . . . Construction Impeded . | . . . Haulers Reinforced . | . . . Active Scanning Responses . | . . . Cargo Convoy Interrupts . | . . . Stealth | -11 -10 -10 --------- Run | Yrd Mat Sub Distress Signals 3 | . 3 . Communications Jammed . | . . . Distress Signals . | . . . Times Spotted 40 | . 33 7 Peak Tracking Total 5 | . 5 2 Tactical Retreats 2 | . 2 . Traps | -11 -10 -10 ------- Run | Yrd Mat Sub Traps Triggered 2 | . 2 . Indirectly . | . . . Trap Hack Attempts . | . . . Triggered . | . . . Disarmed . | . . . Reprogrammed . | . . . Reused . | . . . Traps Extracted . | . . . Installed . | . . . Triggered . | . . . Machines | -11 -10 -10 ---------- Run | Yrd Mat Sub Machines Disabled . | . . . Max in Single Turn . | . . . Machines Repaired . | . . . Machines Dismantled . | . . . Machines Sabotaged . | . . . Overloaded Fab Kills . | . . . Hacking | -11 -10 -10 --------- Run | Yrd Mat Sub Machines Accessed 1 | . 1 . Terminals 1 | . 1 . Fabricators . | . . . Repair Stations . | . . . Recycling Units . | . . . Scanalyzers . | . . . Garrison Access . | . . . Total Hacks 3 | . 3 . Successful 1 | . 1 . Failed 2 | . 2 . Catastrophic 1 | . 1 . Database Lockouts . | . . . Manual 3 | . 3 . Terminals 3 | . 3 . Fabricators . | . . . Repair Stations . | . . . Recycling Units . | . . . Scanalyzers . | . . . Garrison Access . | . . . Terminal Hacks 1 | . 1 . Zone Layout 1 | . 1 . Fabricator Hacks . | . . . Repair Station Hacks . | . . . Recycling Unit Hacks . | . . . Scanalyzer . | . . . Garrison Access Hacks . | . . . Unauthorized Hacks . | . . . Terminals . | . . . Fabricators . | . . . Repair Stations . | . . . Recycling Units . | . . . Scanalyzers . | . . . Garrison Access . | . . . Data Cores Recovered . | . . . Used . | . . . Hacking Detections 1 | . 1 . Full Trace Events 1 | . 1 . Feedback Events . | . . . Feedback Blocked . | . . . Robot Schematics Acquired . | . . . Robots Built . | . . . Authchips . | . . . Time . | . . . Total Robot Build Rating . | . . . Part Schematics Acquired . | . . . Parts Built . | . . . Authchips . | . . . Time . | . . . Total Part Build Rating . | . . . Parts Repaired . | . . . Time . | . . . Parts Recycled . | . . . Recycled Matter . | . . . Retrieved Matter . | . . . Retrieved Components . | . . . Parts Scanalyzed . | . . . Part Schematics Acquired . | . . . Parts Damaged . | . . . Bothacking | -11 -10 -10 ------------ Run | Yrd Mat Sub Used RIF Installer . | . . . Robots Hacked . | . . . Non-combat . | . . . Combat . | . . . Robot Hacks Applied . | . . . Relay Couplers Released . | . . . Fabnet Peak Effective % . | . . . Robots Rewired . | . . . Allies Hacked . | . . . Hacks Repelled . | . . . Allies | -11 -10 -10 -------- Run | Yrd Mat Sub Total Allies . | . . . Largest Group . | . . . Highest-Rated Group . | . . . Highest-Rated Ally . | . . . Total Orders . | . . . Ally Attacks . | . . . Total Damage . | . . . Kills . | . . . Allies Corrupted . | . . . Allies Melted . | . . . Intel | -11 -10 -10 ------- Run | Yrd Mat Sub Robot Analysis Total . | . . . Derelict Logs Recovered 1 | . . 1 Drone Launches . | . . . Drone Recoveries . | . . . Exploration | -11 -10 -10 ------------- Run | Yrd Mat Sub Turns Passed 3134 | 145 1076 1913 Spaces Moved 1388 | 77 422 889 Core 17 | 9 8 . Treads 422 | 68 354 . Legs 949 | . 60 889 Wheels . | . . . Hover . | . . . Flight . | . . . Fastest Speed 50 | 50 160 190 Average Speed 195 | 152 179 206 Slowest Speed 450 | 160 450 330 Overloaded Moves . | . . . Propulsion Burnouts . | . . . Robots Hopped . | . . . Cave-ins Triggered . | . . . Exploration Rate (%) 40 | 4 72 44 Regions Visited 2 Branch Regions 1 Pre-discovered Areas . | . . . Known Exits Taken 1 | . 1 . Unknown Exits Taken 1 | 1 . . Scrap Searched 1 | . . 1 Spaces Dug . | . . . Terrain Destroyed 100 | . 56 44 Melee . | . . . Projectile . | . . . AOE 100 | . 56 44 Terrain Rammed . | . . . Walls Destroyed . | . . . Machines Disabled . | . . . Actions | -11 -10 -10 --------- Run | Yrd Mat Sub Total 1646 | 95 621 930 Wait 114 | . 110 4 Move 1386 | 76 421 889 Hop . | . . . Pick Up 23 | 6 11 6 Fast Attach 12 | 7 3 2 Attach 8 | 1 4 3 Detach 1 | 1 . . Swap 5 | 1 3 1 Drop 4 | . 2 2 Fire 91 | 3 65 23 Melee . | . . . Ram . | . . . Kick . | . . . Crush 2 | . 2 . Escape Stasis . | . . . Rewire . | . . . Trap . | . . . Miscellaneous . | . . . Route ------- -11/Scrapyard -10/Materials (discovered 3 exits: [*Mat] / [*Min] / *Sub) -10/Subcaves (discovered 1 exit: *Mat) History --------- Turn | Location | Event 20 | -11/Scrapyard | Discovered new exit (range 15) 146 | -11/Scrapyard | Entered Materials 300 | -10/Materials | Build established: Mutant 438 | -10/Materials | Discovered new exit (range 9) 803 | -10/Materials | Discovered new exit (range 11) 1014 | -10/Materials | Core integrity fell below 50% 1046 | -10/Materials | Lost 5 parts (2n1u2w) 1199 | -10/Materials | Discovered new exit (range 9) 1221 | -10/Materials | Identified exit to Subcaves 1222 | -10/Materials | Entered Subcaves 1230 | -10/Subcaves | Curiously followed by a Cobbler waking with a query about "LVR3C" 1269 | -10/Subcaves | Core integrity fell below 20% 1726 | -10/Subcaves | Learned Materials stockpile data 1737 | -10/Subcaves | A swath of the cavern ceiling suddenly collapsed 1800 | -10/Subcaves | Discovered new exit (range 7) 1809 | -10/Subcaves | Identified exit to Materials 1890 | -10/Subcaves | Lost 3 parts (1n2w) 3135 | -10/Subcaves | Destroyed by 7B-DYK(R) with Subdweller Laser Last Messages --------------- 01860_ TU-2N8(R) destroyed. 01863_ Sub. Power Source shoots sparks and powers down. 01864_ The unstable cave ceiling collapses. 01877_ Acquired 31 matter. 01885_ The unstable cave ceiling collapses. 02362_ XW-X7P(R): "WEHOME!" 02379_ XW-X7P(R) destroyed. 02388_ Acquired 36 matter. 02389_ Subatomizers dissect the Sub. Monowheel. 02394_ Acquired Sub. Laser. 02395_ Dropped Ion Engine. 02396_ Acquired Ion Engine. 02398_ Dropped Weapon Shielding. 02405_ Acquired Scrap Shield. 02414_ Subatomizers dissect the Sub. Monowheel. 02414_ The unstable cave ceiling collapses. 02428_ Subatomizers dissect the Sub. Monowheel, destroying it. 02456_ The unstable cave ceiling collapses. Map ----- +----------------------------------------------------+ | | | | | | | | | | | | | ?????????????????????????????????????????????????? | | ?????????????????????????????????????????????????? | | ?????????????????????????????????????????????????? | | ?????????????????????????????????????????????????? | | ?????????????????????????????????????????????????? | | ?????????????????????????????????????????????????? | | ?????????????????????????????????????????????????? | | ?????????????????????????????????????????????????? | | ?????????????????????????????????????????????????? | | ?????????????????????????????????????????????????? | | ?????????????????????????????????????????????????? | | ?????????????????????????????????????????????????? | | ?????????????????????????????????????????????????? | | ?????????????????????????????????????????????????? | | ????????????????????######??????###??????????????? | | ????????????????????# ##?????# ##?????????????? | | ????????????????????# ####??# #?????###?????? | | ????????????????????# #### #??#### #?????? | | ????????????????????#### #??# #?????? | | ??????????????????????## @ ##?## #####?? | | ?????????????????????## O ##?## ### | | ?????????????????????# ##?# # | | ????????????????????## #### #### ## | | ????????????????????# ##?# ## ## | | ????????????????????##R #### ! | | ?????????????????????## #### | | ??????????????????????# "" #?#### | | ?????????????????????## " #????# | | ????????????????? "??# #????# ## | | ?????????????" """" ##"" ##???# ##### #? | | ???????????????# " ##??########??# ## | | ???????????????#"" " #??## # #### # | | ???????????????#"" "#??# " ## # | | ???????????????#"" "###??# " ## | | ???????????????""" """????## ####? | | ????????????????" """"????# """" ####???? | | ?????????????? "####?????# ##" #" #??????? | | ????????????? ?????????# ###### #???? | | ???????????? ???????????# #????## #??? | | ??????????????????????????## #?????# #??? | | ???????????????????????????#####?????# #### ##??? | | ?????????????????????????????????????###???###???? | | ?????????????????????????????????????????????????? | | ?????????????????????????????????????????????????? | +----------------------------------------------------+ Best States ------------- Heat Dissipation 25 Energy Generation 15 Energy Capacity 250 Matter Stores 300 Matter Capacity 300 Sight Range 16 Terrain Scan Range 16 Terrain Scan Density 10 Evasion (%) 40 Recoil Reduction 2 Item Schematics ----------------- None Robot Schematics ------------------ None Fabricated ------------ Nothing Alien Tech Used ----------------- None Achievements -------------- None Challenges ------------ None Game ------ Seed MultinovaPowerBeamcaster Manual? 0 Play Time 00:18:58 Cumulative 20.8 hours Start 2024.10.17 @ 13:54:27 End 2024.10.17 @ 14:25:39 Sessions 1 Manual Loads 0 Difficulty Rogue Special Mode None Game No. 29 Rogue 29 Adventurer 0 Explorer 0 Win Type - Total 0 Types 0/0/0/0/0/0/0/0/0 Lore% 24 Gallery% 27 Achievement% 23 Wizard Run 0 Options --------- Layout 1 ASCII 0 Keyboard 0 Movement Numpad Keybinds 0 Fullscreen 1 Font 24/Smallcaps Map View 50x35 Zoom Use 0% Tactical HUD 1 Map Filters NONE Filters NONE Steam 1 RUN: 2498ec53-aa13-4f21-9466-5c71681485f1